Cogmind - Beta 16 @@@ ROGUE MODE // 2026.01.11 @ 17:51:58 Player: Ez3 Result: Destroyed by G-34 Mercenary with Small Laser Performance ------------- Evolutions (1) 500 Regions Visited (4) 800 Robots Destroyed (14) 70 Value Destroyed (449) 449 Prototype IDs (0) 0 Alien Tech Used (0) 0 Bonus (0) 0 TOTAL SCORE: 1819 Bonus ------- None Cogmind --------- Core Integrity 0/400 Matter 238/300 Energy 125/125 System Corruption 40% Temperature Hot (243) Movement Rolling (155) Ox5 Location -9/Mines Parts ------- > --- POWER (1) -------- Light Ion Engine > --- PROPULSION (4) --- Wheel > --- UTILITY (2) ------ High-capacity Storage Unit ECM Suite > --- WEAPON (2) ------- Particle Cannon Rocket Launcher > --- INVENTORY (20) --- Medium Storage Unit Mining Laser Peak State ------------ > --- POWER ------------ Light Nuclear Core > --- PROPULSION ------- Aluminum Leg Aluminum Leg Aluminum Leg Aluminum Leg > --- UTILITY ---------- Sensor Array ECM Suite > --- WEAPON ----------- EM Pulse Gun Light Assault Rifle > --- INVENTORY -------- Aluminum Leg Aluminum Leg Mining Laser [Rating: 11] Favorites ----------- Power Light Ion Engine Engine Light Ion Engine Power Core Light Nuclear Core Propulsion Aluminum Leg Leg Aluminum Leg Wheel Wheel Utility Sensor Array Device Sensor Array Storage Medium Matter Pod Weapon Light Assault Rifle Energy Gun EM Pulse Gun Energy Cannon Particle Cannon Ballistic Gun Light Assault Rifle Launcher Rocket Launcher Special Weapon Mining Laser Build | -11 -10 -10 -9 -9 ------- Run | Yrd Mat Min Mat Min Slots Evolved 2 | . . . 2 . Power . | . . . . . Propulsion 2 | . . . 2 . Utility . | . . . . . Weapon . | . . . . . Parts Attached 25 | 6 3 4 9 3 Power 4 | 1 . 2 1 . Engine 3 | 1 . 1 1 . Core 1 | . . 1 . . Reactor . | . . . . . Propulsion 9 | 2 . . 7 . Treads . | . . . . . Leg 7 | 2 . . 5 . Wheel 2 | . . . 2 . Hover . | . . . . . Flight . | . . . . . Utility 4 | . 2 1 . 1 Device 2 | . 1 1 . . Storage 2 | . 1 . . 1 Processor . | . . . . . Hackware . | . . . . . Protection . | . . . . . Artifact . | . . . . . Weapon 8 | 3 1 1 1 2 Energy Gun 3 | 3 . . . . Energy Cannon 1 | . . . . 1 Ballistic Gun 2 | . 1 . 1 . Ballistic Cannon . | . . . . . Launcher 1 | . . . . 1 Special Weapon 1 | . . 1 . . Impact Weapon . | . . . . . Slashing Weapon . | . . . . . Piercing Weapon . | . . . . . Special Melee Weapon . | . . . . . Unidentified Prototypes . | . . . . . Corrupted Parts 4 | . . . 4 . System Corruption 40 | . . . 40 . Parts Lost 13 | . . . 12 1 Power 1 | . . . 1 . Propulsion 8 | . . . 7 1 Utility 1 | . . . 1 . Weapon 3 | . . . 3 . Highest Loss Streak 12 | . . . 12 1 To Critical Strikes . | . . . . . Average Backups 4 | 2 5 4 2 1 Power . | . . . . . Propulsion 3 | 1 3 3 1 . Utility . | . 1 . . . Weapon 1 | . 1 1 1 1 Tool/Special . | . . . . . Unused Backups 8 | . . 7 . 1 Power . | . . . . . Propulsion 4 | . . 4 . . Utility 2 | . . 1 . 1 Weapon 2 | . . 2 . . Tool/Special . | . . . . . Average Slot Usage (%) 95 | . 76 100 75 59 Engine 8 | . 14 8 1 11 Core 4 | . . 5 7 . Leg 27 | . 28 28 30 . Device 23 | . 1 26 18 11 Storage 1 | . 4 1 . 4 Energy Gun 11 | . 16 11 7 . Ballistic Gun 12 | . 11 14 9 . Special Weapon 1 | . . 2 . . Peak Build Rating 11 | 5 7 9 11 9 Average Rating 7 | 4 5 7 8 6 On Entrance 5 | . 5 7 9 4 Avg Prop Armor Cover (%) 13 | . . . 13 . Naked Turns . | . . . . . Heaviest Build 53 | 7 9 11 11 53 Greatest Support 40 | 20 20 20 40 20 Greatest Overweight (x) 5 | . . . . 5 Average Overweight (x) . | . . . . 1 Largest Inventory Capacity 20 | 5 5 5 5 20 Average Capacity 5 | 5 5 5 5 13 Most Carried 5 | 5 5 5 5 2 Average Carried 4 | 2 5 4 2 1 Final Capacity 20 | 5 5 5 5 20 Final Carried 5 | 5 5 5 1 2 Class Distribution -------------------- 100% | Mutant Dominant Class ---------------- Mutant | -10/Materials Mutant | -10/Mines Mutant | -9/Materials Mutant | -9/Mines Resources | -11 -10 -10 -9 -9 ----------- Run | Yrd Mat Min Mat Min Matter Collected 455 | 260 10 153 . 32 Remotely . | . . . . . Salvage Created 552 | 71 13 180 288 . Parts 32 | 4 . 10 18 . Haulers Intercepted . | . . . . . Recyclers Shooed . | . . . . . Parts Field Recycled . | . . . . . Retrieved Matter . | . . . . . Parts Self-Destructed . | . . . . . Prevented . | . . . . . Parts Restored . | . . . . . Kills | -11 -10 -10 -9 -9 ------- Run | Yrd Mat Min Mat Min Combat Hostiles Destroyed 10 | 1 . 4 5 . Guns 7 | 1 . 3 3 . AOE 3 | . . 1 2 . Classes Destroyed 4 | 2 1 . 1 . Worker 3 | 1 . . 2 . Operator 1 | . 1 . . . Grunt 9 | 1 . 4 4 . Sentry 1 | . . . 1 . Best Kill Streak 7 | 1 2 2 7 . Combat Bots Only 5 | 1 . 2 5 . Max Kills in Single Turn 3 | 1 1 2 3 . Gunslinging . | . . . . . Exploded 2 | . . 1 2 . Melee . | . . . . . Uniques/NPCs Destroyed . | . . . . . Combat | -11 -10 -10 -9 -9 -------- Run | Yrd Mat Min Mat Min Hostile Shots Fired 145 | 2 . 13 126 4 Missed 46 | . . 8 37 1 Hits 99 | 2 . 5 89 3 Projectile 99 | 2 . 5 89 3 Critical Strikes 2 | . . . 2 . Damage Taken 1373 | 21 . 59 1258 35 Core 440 | . . 36 384 20 Absorbed by Shields . | . . . . . Core Remaining (%) 92 | 100 . 85 . . Volleys Fired 43 | 8 5 13 17 . Largest 2 | 2 2 2 2 . Hottest 100 | 90 90 100 60 . Shots Fired 68 | 16 10 21 21 . Gun 63 | 16 10 16 21 . Cannon . | . . . . . Launcher . | . . . . . Special 5 | . . 5 . . Kinetic 29 | . 4 8 17 . Thermal 14 | 8 1 5 . . Explosive . | . . . . . Electromagnetic 25 | 8 5 8 4 . Robot Hit Streak 9 | 2 2 9 4 . Robot Miss Streak 5 | 5 3 1 2 . Penetration Max . | . . . . . Secondary Targets . | . . . . . Shots Hit Robots 34 | 6 3 13 12 . Core Hits 30 | 2 3 10 15 . Critical Kills . | . . . . . Critical Parts Destroyed . | . . . . . Critical Strikes . | . . . . . Melee Attacks . | . . . . . Impact . | . . . . . Slashing . | . . . . . Piercing . | . . . . . Sneak Attacks . | . . . . . Combat Hostiles . | . . . . . Follow-up Attacks . | . . . . . Damage Inflicted 734 | 70 37 222 405 . Guns 414 | 70 37 140 167 . Cannons . | . . . . . Explosions 320 | . . 82 238 . Melee . | . . . . . Ramming . | . . . . . Kinetic 199 | . 19 56 124 . Thermal 134 | 43 . 82 9 . Explosive . | . . . . . Electromagnetic 401 | 27 18 84 272 . Impact . | . . . . . Slashing . | . . . . . Piercing . | . . . . . Highest Corruption 40 | . . . 40 40 Average Corruption 36 | . . . 28 40 Corruption Purged . | . . . . . Corruption Blocked . | . . . . . Effects 6 | . . . 3 3 Matter Fused 1 | . . . 1 . Heat Flow Errors 4 | . . . 1 3 Misdirections 1 | . . . 1 . Overload Shots . | . . . . . Overflow Damage . | . . . . . Projectiles . | . . . . . Explosions . | . . . . . Melee . | . . . . . Knockbacks . | . . . . . Impact . | . . . . . Kinetic . | . . . . . Secondary . | . . . . . Self-Inflicted Damage 26 | . . . 26 . Shots 1 | . . . 1 . Rammed . | . . . . . Targets Rammed . | . . . . . Kicked . | . . . . . Crushed . | . . . . . Highest Temperature 210 | 72 30 38 141 210 Average Temperature 35 | 33 16 14 51 87 Received Heat Transfer 627 | 12 . 36 558 21 Siege Activations . | . . . . . Martial Activations . | . . . . . Shielding Activations . | . . . . . Robots Disrupted . | . . . . . Combat Hostiles . | . . . . . Robots Corrupted . | . . . . . Combat Hostiles . | . . . . . Parts Fried . | . . . . . Impact Corruptions . | . . . . . Robots Melted . | . . . . . Combat Hostiles . | . . . . . Parts Melted . | . . . . . Heat Transferred 250 | 100 . 100 50 . Parts Sabotaged . | . . . . . Parts Stolen . | . . . . . Parts Stripped . | . . . . . Power Chain Reactions 2 | . . 1 1 . Alert | -11 -10 -10 -9 -9 ------- Run | Yrd Mat Min Mat Min Maximum Alert Level . | . . . . . Low Security (%) 100 | 100 100 100 100 100 Level 1 . | . . . . . Level 2 . | . . . . . Level 3 . | . . . . . Level 4 . | . . . . . Level 5 . | . . . . . High Security . | . . . . . Max Security . | . . . . . Peak Influence 105 | 10 15 57 105 27 Initial 27 | . 6 1 . 27 Average 6 | 1 4 4 23 15 Influence Increases 349 | 25 20 112 192 . Destroy 0b10 Robot/C 200 | 20 . 80 100 . Destroy 0b10 Robot/NC 20 | 5 5 . 10 . Destroy Leader 40 | . . 20 20 . Successful Hack 2 | . . . 2 . Disable Machine 60 | . 15 . 45 . Destroy Structure 12 | . . 12 . . Lose Combat Pursuer 15 | . . . 15 . Influence Decreases 349 | 15 25 117 122 70 Entered New Map 51 | . 4 4 . 43 Time Decay 191 | 15 21 113 22 20 Lost Part 107 | . . . 100 7 Squads Dispatched 1 | . 1 . . . Investigation . | . . . . . Extermination . | . . . . . Reinforcement 1 | . 1 . . . Assault . | . . . . . Garrison . | . . . . . Intercept . | . . . . . Searches Triggered . | . . . . . Construction Impeded . | . . . . . Haulers Reinforced . | . . . . . Active Scanning Responses . | . . . . . Cargo Convoy Interrupts . | . . . . . Stealth | -11 -10 -10 -9 -9 --------- Run | Yrd Mat Min Mat Min Distress Signals . | . . . . . Communications Jammed . | . . . . . Distress Signals . | . . . . . Times Spotted 25 | 1 3 7 12 2 Peak Tracking Total 8 | 1 3 3 8 2 Tactical Retreats 4 | . . 1 3 . ECM-based Alert Blocks 6 | . . 1 5 . Traps | -11 -10 -10 -9 -9 ------- Run | Yrd Mat Min Mat Min Traps Triggered . | . . . . . Indirectly . | . . . . . Trap Hack Attempts . | . . . . . Triggered . | . . . . . Disarmed . | . . . . . Reprogrammed . | . . . . . Reused . | . . . . . Traps Extracted . | . . . . . Installed . | . . . . . Triggered . | . . . . . Machines | -11 -10 -10 -9 -9 ---------- Run | Yrd Mat Min Mat Min Machines Disabled 4 | . 1 . 3 . Max in Single Turn 1 | . 1 . 1 . Machines Repaired . | . . . . . Machines Dismantled . | . . . . . Machines Sabotaged . | . . . . . Overloaded Fab Kills . | . . . . . Hacking | -11 -10 -10 -9 -9 --------- Run | Yrd Mat Min Mat Min Machines Accessed 3 | . . 1 2 . Terminals 2 | . . 1 1 . Fabricators . | . . . . . Repair Stations . | . . . . . Recycling Units . | . . . . . Scanalyzers 1 | . . . 1 . Garrison Access . | . . . . . Total Hacks 11 | . . 3 8 . Successful 8 | . . 2 6 . Failed 3 | . . 1 2 . Catastrophic . | . . . . . Database Lockouts . | . . . . . Manual . | . . . . . Terminals 7 | . . 3 4 . Fabricators . | . . . . . Repair Stations . | . . . . . Recycling Units . | . . . . . Scanalyzers 4 | . . . 4 . Garrison Access . | . . . . . Terminal Hacks 5 | . . 2 3 . Record 2 | . . . 2 . Alert Level 1 | . . 1 . . Zone Layout 2 | . . 1 1 . Fabricator Hacks . | . . . . . Repair Station Hacks . | . . . . . Recycling Unit Hacks . | . . . . . Scanalyzer 3 | . . . 3 . Insert Component 1 | . . . 1 . Analyze 1 | . . . 1 . Retrieve Study 1 | . . . 1 . Garrison Access Hacks . | . . . . . Unauthorized Hacks . | . . . . . Terminals . | . . . . . Fabricators . | . . . . . Repair Stations . | . . . . . Recycling Units . | . . . . . Scanalyzers . | . . . . . Garrison Access . | . . . . . Data Cores Recovered 1 | . 1 . . . Used . | . . . . . Hacking Detections 2 | . . . 2 . Full Trace Events . | . . . . . Feedback Events . | . . . . . Feedback Blocked . | . . . . . Robot Schematics Acquired . | . . . . . Robots Built . | . . . . . Authchips . | . . . . . Time . | . . . . . Total Robot Build Rating . | . . . . . Part Schematics Acquired 1 | . . . 1 . Parts Built . | . . . . . Authchips . | . . . . . Time . | . . . . . Total Part Build Rating . | . . . . . Part Studies Acquired . | . . . . . Parts Repaired . | . . . . . Time . | . . . . . Parts Recycled . | . . . . . Recycled Matter . | . . . . . Retrieved Matter . | . . . . . Retrieved Components . | . . . . . Parts Scanalyzed 1 | . . . 1 . Part Schematics Acquired 1 | . . . 1 . Parts Damaged . | . . . . . Bothacking | -11 -10 -10 -9 -9 ------------ Run | Yrd Mat Min Mat Min Used RIF Installer . | . . . . . Robots Hacked . | . . . . . Non-combat . | . . . . . Combat . | . . . . . Robot Hacks Applied . | . . . . . Relay Couplers Released . | . . . . . Fabnet Peak Effective % . | . . . . . Robots Rewired . | . . . . . Allies Hacked . | . . . . . Hacks Repelled . | . . . . . Allies | -11 -10 -10 -9 -9 -------- Run | Yrd Mat Min Mat Min Total Allies 1 | . . 1 . . Largest Group 1 | . . 1 . . Highest-Rated Group 31 | . . 31 . . Highest-Rated Ally 31 | . . 31 . . Total Orders . | . . . . . Ally Attacks . | . . . . . Total Damage . | . . . . . Kills . | . . . . . Allies Corrupted . | . . . . . Allies Melted . | . . . . . Intel | -11 -10 -10 -9 -9 ------- Run | Yrd Mat Min Mat Min Active Infowar (turns) 1663 | . 15 1519 116 13 Sensors 1629 | . 15 1519 95 . ECM 1510 | . . 1381 116 13 Robot Analysis Total . | . . . . . Derelict Logs Recovered 1 | . . 1 . . Drone Launches . | . . . . . Drone Recoveries . | . . . . . Exploration | -11 -10 -10 -9 -9 ------------- Run | Yrd Mat Min Mat Min Turns Passed 1964 | 132 95 1519 158 60 Spaces Moved 1464 | 87 63 1167 97 50 Core 15 | 15 . . . . Treads . | . . . . . Legs 1381 | 72 63 1167 79 . Wheels 68 | . . . 18 50 Hover . | . . . . . Flight . | . . . . . Fastest Speed 50 | 50 120 120 80 80 Average Speed 118 | 107 120 120 112 100 Slowest Speed 155 | 120 120 120 120 155 Overloaded Moves . | . . . . . Propulsion Burnouts . | . . . . . Robots Hopped . | . . . . . Potential Cave-ins . | . . . . . Cave-ins Triggered . | . . . . . Exploration Rate (%) 32 | 5 25 100 15 17 Regions Visited 4 Branch Regions 2 Pre-discovered Areas . | . . . . . Known Exits Taken . | . . . . . Unknown Exits Taken 4 | 1 1 1 1 . Scrap Searched 2 | . . 1 . 1 Spaces Dug 5 | . . 5 . . Terrain Destroyed 12 | . . 12 . . Melee . | . . . . . Projectile 5 | . . 5 . . AOE 7 | . . 7 . . Terrain Rammed . | . . . . . Walls Destroyed . | . . . . . Machines Disabled . | . . . . . Actions | -11 -10 -10 -9 -9 --------- Run | Yrd Mat Min Mat Min Total 1623 | 107 72 1262 124 58 Wait 62 | . . 56 2 4 Move 1460 | 86 62 1166 96 50 Hop . | . . . . . Pick Up 19 | 7 1 10 . 1 Fast Attach 14 | 3 2 1 5 3 Attach 6 | 2 . . 4 . Detach . | . . . . . Swap 6 | 1 1 4 . . Drop 13 | . 1 12 . . Fire 43 | 8 5 13 17 . Melee . | . . . . . Ram . | . . . . . Kick . | . . . . . Crush . | . . . . . Escape Stasis . | . . . . . Rewire . | . . . . . Trap . | . . . . . Miscellaneous . | . . . . . Route ------- -11/Scrapyard -10/Materials -10/Mines (discovered 4 exits: *Mat x2 / [*Exi] / [*Sub]) -9/Materials (discovered 2 exits: Mat / [*Min]) -9/Mines (discovered 1 exit: *Mat) History --------- Turn | Location | Event 2 | -11/Scrapyard | Met Revision 17 112 | -11/Scrapyard | Discovered new exit (range 8) 133 | -11/Scrapyard | Entered Materials 214 | -10/Materials | Discovered new exit (range 10) 228 | -10/Materials | Entered Mines 299 | -10/Mines | YI-UF0 nonchalantly dropped a Grenade Launcher on the ground 329 | -10/Mines | Build established: Mutant 339 | -10/Mines | Received a Mining Laser from a helpful Derelict 485 | -10/Mines | Deemed a non-threat by the Exiles lab entrance 485 | -10/Mines | Discovered new exit (range 5) 619 | -10/Mines | Discovered new exit (range 8) 619 | -10/Mines | Discovered new exit (range 10) 629 | -10/Mines | Learned location of 1 exit from Materials 731 | -10/Mines | Discovered new exit (range 9) 1183 | -10/Mines | Found a hidden stash of uninstalled traps 1747 | -10/Mines | Entered Materials 1747 | -9/Materials | Evolved 2 slots: Propulsion x2 1748 | -9/Materials | Identified exit to Materials 1861 | -9/Materials | Core integrity fell below 50% 1879 | -9/Materials | System corruption reached 10% 1884 | -9/Materials | Core integrity fell below 20% 1890 | -9/Materials | System corruption reached 30% 1901 | -9/Materials | Discovered new exit (range 6) 1905 | -9/Materials | Entered Mines 1906 | -9/Mines | Discovered exit to Materials (range 10) 1915 | -9/Mines | Received a Rocket Launcher from a helpful Derelict 1927 | -9/Mines | Lost 12 parts (1p7n1u3w) 1965 | -9/Mines | Destroyed by G-34 Mercenary with Small Laser Last Messages --------------- 01915_ GK-FX1(g) slips back into the shadows. 01917_ Acquired Rocket Launcher. 01930_ Searching scrap... 01930_ Found Particle Cannon. 01930_ Found Med. Storage Unit. 01930_ Found Hcp. Storage Unit. 01930_ Found 32 Matter. 01931_ Acquired 32 matter. 01932_ Acquired Hcp. Storage Unit. 01934_ Acquired Med. Storage Unit. 01935_ System corrupted: Heat flow error (+233). 01936_ Acquired Particle Cannon. 01944_ T-07 Excavator is excavating. 01951_ C-30 ARC bursts open, deploying its payload. 01951_ G-47 Trooper unfolds itself. 01951_ G-34 Mercenary unfolds itself. 01952_ T-07 Excavator is excavating. 01954_ Wheel destroyed. 01956_ T-07 Excavator is excavating. 01965_ System corrupted: Heat flow error (+237). Map ----- +----------------------------------------------------+ | | | | | | | | | | | | | | | | | ?????????????????????????????????????????????????? | | ?????????????????????????????????????????????????? | | ?????????????????????????????????????????????????? | | ?????????????????????????????????????????????????? | | ?????????????????????????????????????????????????? | | ?????????????????????????????????????????????????? | | ?????????????????????????????????????????????????? | | ?????????????????????????????????????????????????? | | ?????????????????????????????????????????????????? | | #???????????????####??????????#??????????????????? | | ##?????????????## #????????? ##?????????????????? | | ##????????????# #????????? ##????????????????? | | #????????????## ###?????? #????????????????? | | ##????????????# #?????# #### ?????????? | | ######???????# #?#### ?????????? | | ####### ### ??????????? | | ###### ## g #?????????????????? | | # #????# ## g t@ #?????????????????? | | # ###### ## #### ##?????????????????? | | # ## #### ### ##??# ##??????????????????? | | ### #?# ##???## ##???????????????????? | | ## #?????#####????????????????????? | | < ###### #??????????????????????????????? | | #####????# ??????????????????????????????? | | ##????????## ??????????????????????????????? | | #??????????# " #?????????????????????????????? | | #??????????#"%" #?????????????????????????????? | | ####?????????? " ?????????????????????????????? | | ?????????????? ?????????????????????????????? | | ?????????????? ????????????????????????????? | | ?????????????? ????????????????????????????? | | ????????????? ????????????????????????????? | | ??????????????## ????????????????????????????? | | ???????????????? ??????????????????????????????? | | ?????????????????????????????????????????????????? | | ?????????????????????????????????????????????????? | | ?????????????????????????????????????????????????? | | ?????????????????????????????????????????????????? | | ?????????????????????????????????????????????????? | | ?????????????????????????????????????????????????? | | ?????????????????????????????????????????????????? | | ?????????????????????????????????????????????????? | +----------------------------------------------------+ Best States ------------- Heat Dissipation 28 Energy Generation 14 Energy Capacity 250 Matter Stores 334 Matter Capacity 400 Sight Range 16 Robot Scan Range 14 Terrain Scan Density 10 ECM Strength 1 Evasion (%) 55 Item Schematics ----------------- Aluminum Leg | -9/Materials | Scanalyzed Robot Schematics ------------------ None Fabricated ------------ Nothing Repaired ---------- Nothing Studied --------- None Alien Tech Used ----------------- None Achievements -------------- A Problem For Future Me DATA ERROR: Steam Global Achievement% Storm Trooper Challenges ------------ None Game ------ Seed HeartQuantumObliterator Manual? 0 Play Time 01:16:32 Cumulative 3.7 hours Start 2026.01.11 @ 14:10:04 End 2026.01.11 @ 17:51:58 Sessions 1 Manual Loads 0 Difficulty Rogue Special Mode None Game No. 2 Rogue 2 Adventurer 0 Explorer 0 Win Type - Total 0 Types 0/0/0/0/0/0/0/0/0/0 Lore% 0 Gallery% 6 Achievement% 5 Wizard Run 0 Options --------- Layout 0 ASCII 0 Keyboard 1 Movement Vi Keybinds 0 Fullscreen 1 Font 14/SmallcapsGlow Map View 72x54 Zoom Use 0% Tactical HUD 1 Map Filters NONE Filters NONE Steam 0 RUN: c6a71d36-22bd-42d1-a018-1851eec6cc2d